[Event "*** Titled Tuesday 3|2 Blitz"]
[Site "Chess.com"]
[Date "2015.05.05"]
[Round "9"]
[White "Cryptochess"]
[Black "facu57"]
[Result "1-0"]
[WhiteElo "2404"]
[BlackElo "2192"]
[TimeControl "180+2"]
[EndTime "13:05:45 PDT"]
[Termination "Cryptochess won by checkmate"]

1. e4 {[%clk 0:03:01.9]} 1... c6 {[%clk 0:03:00.6]} 2. d4 {[%clk 0:03:02.2]}
2... d5 {[%clk 0:03:02.1]} 3. Nc3 {[%clk 0:03:03.5]} 3... dxe4 {[%clk
0:03:02.5]} 4. Nxe4 {[%clk 0:03:05.4]} 4... Nf6 {[%clk 0:03:00.8]} 5. Nxf6+
{[%clk 0:03:06.2]} 5... exf6 {[%clk 0:03:00.8]} 6. Nf3 {[%clk 0:03:07.8]} 6...
Bd6 {[%clk 0:02:56.6]} 7. Bd3 {[%clk 0:03:08.4]} 7... O-O {[%clk 0:02:57]} 8.
O-O {[%clk 0:03:09.9]} 8... Bg4 {[%clk 0:02:57.6]} 9. h3 {[%clk 0:03:11.1]} 9...
Bh5 {[%clk 0:02:58.5]} 10. Re1 {[%clk 0:03:10.2]} 10... Nd7 {[%clk 0:02:59.3]}
11. c4 {[%clk 0:02:57.1]} 11... Bc7 {[%clk 0:02:53.2]} 12. Bf5 {[%clk
0:02:45.5]} 12... Re8 {[%clk 0:02:52.5]} 13. Be3 {[%clk 0:02:40.1]} 13... Nf8
{[%clk 0:02:52.9]} 14. Bg4 {[%clk 0:01:59.7]} 14... Bg6 {[%clk 0:02:52.6]} 15.
Nh4 {[%clk 0:02:00.1]} 15... Qd6 {[%clk 0:02:51.2]} 16. g3 {[%clk 0:01:58.7]}
16... Ne6 {[%clk 0:02:45.8]} 17. d5 {[%clk 0:01:52.1]} 17... cxd5 {[%clk
0:02:44.2]} 18. cxd5 {[%clk 0:01:52.9]} 18... Nf8 {[%clk 0:02:45.1]} 19. Bf4
{[%clk 0:01:44.2]} 19... Qb6 {[%clk 0:02:44.9]} 20. Rxe8 {[%clk 0:01:33.9]}
20... Rxe8 {[%clk 0:02:45.4]} 21. d6 {[%clk 0:01:35.5]} 21... Bd8 {[%clk
0:02:42.4]} 22. Be3 {[%clk 0:01:15.1]} 22... Qxb2 {[%clk 0:02:36.8]} 23. Rc1
{[%clk 0:01:09.2]} 23... Bb6 {[%clk 0:02:29.7]} 24. d7 {[%clk 0:00:53]} 24...
Rd8 {[%clk 0:02:29.9]} 25. Rc8 {[%clk 0:00:49.7]} 25... Ne6 {[%clk 0:01:47.9]}
26. Bxe6 {[%clk 0:00:41.7]} 26... fxe6 {[%clk 0:01:48.6]} 27. Bxb6 {[%clk
0:00:39]} 27... Qxb6 {[%clk 0:01:49.2]} 28. Nxg6 {[%clk 0:00:34.3]} 28... hxg6
{[%clk 0:01:49.7]} 29. Qb3 {[%clk 0:00:35.6]} 29... Qa5 {[%clk 0:01:45.6]} 30.
Qxe6+ {[%clk 0:00:36.2]} 30... Kh7 {[%clk 0:01:46.5]} 31. Qe8 {[%clk 0:00:33.6]}
31... Rxd7 {[%clk 0:01:47.6]} 32. Qh8# {[%clk 0:00:34]} 1-0

[Event "*** Titled Tuesday 3|2 Blitz"]
[Site "Chess.com"]
[Date "2015.05.05"]
[Round "9"]
[White "megarompa"]
[Black "ChessTrener"]
[Result "1-0"]
[WhiteElo "2682"]
[BlackElo "2528"]
[TimeControl "180+2"]
[EndTime "13:05:48 PDT"]
[Termination "megarompa won by resignation"]

1. d4 {[%clk 0:03:01.9]} 1... Nf6 {[%clk 0:02:57.1]} 2. Bg5 {[%clk 0:03:01.9]}
2... Ne4 {[%clk 0:02:57.3]} 3. Bf4 {[%clk 0:03:02.5]} 3... c5 {[%clk 0:02:58.5]}
4. f3 {[%clk 0:03:02.9]} 4... Qa5+ {[%clk 0:02:58.9]} 5. c3 {[%clk 0:03:03.9]}
5... Nf6 {[%clk 0:02:59.9]} 6. Nd2 {[%clk 0:03:04.3]} 6... cxd4 {[%clk
0:03:01.2]} 7. Nc4 {[%clk 0:03:02.6]} 7... Qd8 {[%clk 0:03:01.4]} 8. cxd4 {[%clk
0:03:01]} 8... g6 {[%clk 0:02:56.8]} 9. e4 {[%clk 0:02:56.8]} 9... Bg7 {[%clk
0:02:53.1]} 10. d5 {[%clk 0:02:53.1]} 10... d6 {[%clk 0:02:52.4]} 11. Qd2 {[%clk
0:02:51.5]} 11... Nbd7 {[%clk 0:02:51]} 12. Ne2 {[%clk 0:02:46.5]} 12... O-O
{[%clk 0:02:47]} 13. Nc3 {[%clk 0:02:39.5]} 13... a6 {[%clk 0:02:45.6]} 14. a4
{[%clk 0:02:37.5]} 14... Nc5 {[%clk 0:02:46.4]} 15. Qc2 {[%clk 0:02:33.3]} 15...
Nh5 {[%clk 0:02:34.1]} 16. Be3 {[%clk 0:02:31.8]} 16... f5 {[%clk 0:02:34.9]}
17. b4 {[%clk 0:02:25.3]} 17... f4 {[%clk 0:02:24.9]} 18. Bf2 {[%clk 0:02:21.7]}
18... Nd7 {[%clk 0:02:25.9]} 19. Rc1 {[%clk 0:02:19.8]} 19... Ne5 {[%clk
0:02:26.7]} 20. a5 {[%clk 0:02:20.9]} 20... Nxc4 {[%clk 0:02:25.7]} 21. Bxc4
{[%clk 0:02:19.3]} 21... Bd7 {[%clk 0:02:26.8]} 22. Na4 {[%clk 0:02:20.3]} 22...
Bxa4 {[%clk 0:02:25.3]} 23. Qxa4 {[%clk 0:02:21.3]} 23... Rc8 {[%clk 0:02:25.6]}
24. O-O {[%clk 0:02:18.7]} 24... Nf6 {[%clk 0:02:19.4]} 25. b5 {[%clk
0:02:17.5]} 25... axb5 {[%clk 0:02:07.5]} 26. Bxb5 {[%clk 0:02:19.4]} 26... Rxc1
{[%clk 0:01:43.8]} 27. Rxc1 {[%clk 0:02:21.3]} 27... Qa8 {[%clk 0:01:44.9]} 28.
Rc7 {[%clk 0:02:04.5]} 28... Rc8 {[%clk 0:01:43.4]} 29. Qc4 {[%clk 0:02:05.3]}
29... Rxc7 {[%clk 0:01:41.3]} 30. Qxc7 {[%clk 0:02:07.2]} 30... Kf7 {[%clk
0:01:41.3]} 31. Bb6 {[%clk 0:02:00.1]} 31... g5 {[%clk 0:01:30.3]} 32. h3 {[%clk
0:01:44]} 32... h5 {[%clk 0:01:29.4]} 33. e5 {[%clk 0:01:42.7]} 33... dxe5
{[%clk 0:01:24.4]} 34. d6 {[%clk 0:01:42.6]} 34... Kg6 {[%clk 0:01:08.4]} 35.
Bd3+ {[%clk 0:01:38.1]} 35... Kh6 {[%clk 0:01:09]} 36. d7 {[%clk 0:01:36.2]} 1-0

[Event "*** Titled Tuesday 3|2 Blitz"]
[Site "Chess.com"]
[Date "2015.05.05"]
[Round "9"]
[White "WanderingPuppet"]
[Black "brauliocuarta"]
[Result "1-0"]
[WhiteElo "2088"]
[BlackElo "2048"]
[TimeControl "180+2"]
[EndTime "13:06:22 PDT"]
[Termination "WanderingPuppet won by resignation"]

1. e4 {[%clk 0:03:01.9]} 1... c5 {[%clk 0:03:00.3]} 2. Nf3 {[%clk 0:03:02.8]}
2... e6 {[%clk 0:03:01.7]} 3. d4 {[%clk 0:03:03.8]} 3... cxd4 {[%clk 0:03:03.3]}
4. Nxd4 {[%clk 0:03:05.7]} 4... a6 {[%clk 0:03:04.5]} 5. Bd3 {[%clk 0:03:06.2]}
5... Nf6 {[%clk 0:03:04.5]} 6. Qe2 {[%clk 0:03:05.9]} 6... d6 {[%clk 0:03:01.4]}
7. O-O {[%clk 0:03:04.1]} 7... Qc7 {[%clk 0:02:57]} 8. f4 {[%clk 0:03:04.9]}
8... Nbd7 {[%clk 0:02:54.4]} 9. c4 {[%clk 0:02:55.5]} 9... g6 {[%clk 0:02:30.1]}
10. Nc3 {[%clk 0:02:55.8]} 10... Bg7 {[%clk 0:02:31.5]} 11. Nf3 {[%clk
0:02:53.5]} 11... O-O {[%clk 0:02:26]} 12. Kh1 {[%clk 0:02:52.9]} 12... Re8
{[%clk 0:02:19.7]} 13. Be3 {[%clk 0:02:51.5]} 13... b6 {[%clk 0:02:18.3]} 14.
Rac1 {[%clk 0:02:46.7]} 14... Bb7 {[%clk 0:02:18.4]} 15. b4 {[%clk 0:02:47.1]}
15... Rac8 {[%clk 0:02:11.2]} 16. Rfd1 {[%clk 0:02:46.6]} 16... Qb8 {[%clk
0:02:11.5]} 17. Bg1 {[%clk 0:02:26.5]} 17... Nh5 {[%clk 0:02:04.7]} 18. Qe3
{[%clk 0:02:16.8]} 18... f5 {[%clk 0:01:41.6]} 19. Na4 {[%clk 0:01:53.5]} 19...
fxe4 {[%clk 0:01:26.2]} 20. Bxe4 {[%clk 0:01:55.4]} 20... Bxe4 {[%clk
0:01:19.4]} 21. Qxe4 {[%clk 0:01:57.3]} 21... Ndf6 {[%clk 0:01:16.8]} 22. Qe3
{[%clk 0:01:54.4]} 22... e5 {[%clk 0:01:16.6]} 23. fxe5 {[%clk 0:01:44.8]} 23...
Ng4 {[%clk 0:00:53.1]} 24. Qb3 {[%clk 0:01:30.1]} 24... Nxe5 {[%clk 0:00:44.7]}
25. Nxb6 {[%clk 0:01:25.7]} 25... Rcd8 {[%clk 0:00:21.6]} 26. c5+ {[%clk
0:01:20.4]} 26... Kh8 {[%clk 0:00:22.5]} 27. c6 {[%clk 0:01:21.6]} 27... Qa7
{[%clk 0:00:15.3]} 28. c7 {[%clk 0:01:16.9]} 28... Rc8 {[%clk 0:00:13.9]} 29.
Nxc8 {[%clk 0:01:16.7]} 29... Rxc8 {[%clk 0:00:15.8]} 30. Bxa7 {[%clk
0:01:16.9]} 30... Rxc7 {[%clk 0:00:15.7]} 31. Rxc7 {[%clk 0:01:17]} 1-0

[Event "*** Titled Tuesday 3|2 Blitz"]
[Site "Chess.com"]
[Date "2015.05.05"]
[Round "9"]
[White "jlandaw"]
[Black "desxmchna"]
[Result "1-0"]
[WhiteElo "2375"]
[BlackElo "2172"]
[TimeControl "180+2"]
[EndTime "13:07:01 PDT"]
[Termination "jlandaw won on time"]

1. e4 {[%clk 0:03:01.9]} 1... c5 {[%clk 0:03:00.6]} 2. Nc3 {[%clk 0:03:03.1]}
2... Nc6 {[%clk 0:03:01]} 3. g3 {[%clk 0:03:04.4]} 3... g6 {[%clk 0:03:01.9]} 4.
Bg2 {[%clk 0:03:05.7]} 4... Bg7 {[%clk 0:03:03.5]} 5. d3 {[%clk 0:03:07.2]} 5...
Rb8 {[%clk 0:03:05]} 6. a3 {[%clk 0:03:05.3]} 6... b5 {[%clk 0:03:05.6]} 7. Rb1
{[%clk 0:03:06.8]} 7... Qa5 {[%clk 0:03:04]} 8. Bd2 {[%clk 0:03:06.3]} 8... b4
{[%clk 0:03:04.8]} 9. axb4 {[%clk 0:03:07]} 9... cxb4 {[%clk 0:03:04.4]} 10. Nd5
{[%clk 0:03:07.6]} 10... e6 {[%clk 0:03:00]} 11. Ne3 {[%clk 0:03:00.5]} 11...
Ba6 {[%clk 0:03:00.8]} 12. Ne2 {[%clk 0:02:38.1]} 12... Nge7 {[%clk 0:03:00.9]}
13. Nc1 {[%clk 0:02:28.6]} 13... O-O {[%clk 0:02:58.2]} 14. Nb3 {[%clk
0:02:29.8]} 14... Qb6 {[%clk 0:02:57.2]} 15. O-O {[%clk 0:02:30.8]} 15... Rfc8
{[%clk 0:02:55.7]} 16. Nc4 {[%clk 0:02:17.7]} 16... Bxc4 {[%clk 0:02:54.6]} 17.
dxc4 {[%clk 0:02:19.6]} 17... Ne5 {[%clk 0:02:44.3]} 18. c5 {[%clk 0:02:00.2]}
18... Qb5 {[%clk 0:02:45.4]} 19. Be3 {[%clk 0:01:55.6]} 19... a5 {[%clk
0:02:44.9]} 20. Nd4 {[%clk 0:01:44.6]} 20... Qb7 {[%clk 0:02:34.7]} 21. b3
{[%clk 0:01:42.7]} 21... a4 {[%clk 0:02:14.4]} 22. f4 {[%clk 0:01:38.4]} 22...
N5c6 {[%clk 0:02:11.4]} 23. bxa4 {[%clk 0:01:38.7]} 23... Nxd4 {[%clk
0:02:05.2]} 24. Bxd4 {[%clk 0:01:40.6]} 24... Bxd4+ {[%clk 0:02:06.2]} 25. Qxd4
{[%clk 0:01:41.2]} 25... Nc6 {[%clk 0:02:02.2]} 26. Qf6 {[%clk 0:01:42]} 26...
Qa7 {[%clk 0:01:57.4]} 27. f5 {[%clk 0:01:33.6]} 27... Qxc5+ {[%clk 0:01:58.2]}
28. Kh1 {[%clk 0:01:35.2]} 28... Qe5 {[%clk 0:01:53.5]} 29. Qh4 {[%clk
0:01:33.3]} 29... Nd4 {[%clk 0:01:24.4]} 30. Rbd1 {[%clk 0:01:28.6]} 30... Rxc2
{[%clk 0:01:21]} 31. f6 {[%clk 0:01:29.2]} 31... h5 {[%clk 0:01:01.1]} 32. Rxd4
{[%clk 0:01:14.4]} 32... Qxd4 {[%clk 0:01:02.1]} 33. Qf4 {[%clk 0:01:15.5]}
33... Kh7 {[%clk 0:00:15.2]} 34. Qxb8 {[%clk 0:01:11.7]} 34... Qd2 {[%clk
0:00:08]} 35. Rg1 {[%clk 0:01:06.6]} 1-0

[Event "*** Titled Tuesday 3|2 Blitz"]
[Site "Chess.com"]
[Date "2015.05.05"]
[Round "9"]
[White "PowerThinking2650"]
[Black "Tirantes"]
[Result "0-1"]
[WhiteElo "2063"]
[BlackElo "2130"]
[TimeControl "180+2"]
[EndTime "13:07:36 PDT"]
[Termination "Tirantes won by checkmate"]

1. e4 {[%clk 0:03:01.9]} 1... e5 {[%clk 0:03:00.3]} 2. Nf3 {[%clk 0:03:02.9]}
2... Nc6 {[%clk 0:03:00.8]} 3. d4 {[%clk 0:03:04.5]} 3... exd4 {[%clk
0:03:00.6]} 4. Nxd4 {[%clk 0:03:06.1]} 4... Nf6 {[%clk 0:03:00]} 5. Nxc6 {[%clk
0:03:06]} 5... bxc6 {[%clk 0:02:59.6]} 6. e5 {[%clk 0:03:07.3]} 6... Qe7 {[%clk
0:02:59.8]} 7. Qe2 {[%clk 0:03:08.4]} 7... Nd5 {[%clk 0:03:00]} 8. c4 {[%clk
0:03:09.4]} 8... Nb6 {[%clk 0:03:00.1]} 9. b3 {[%clk 0:03:06.6]} 9... Qe6 {[%clk
0:02:55.5]} 10. Bb2 {[%clk 0:03:05.2]} 10... Bb4+ {[%clk 0:02:50.9]} 11. Nd2
{[%clk 0:03:04.1]} 11... O-O {[%clk 0:02:47.4]} 12. O-O-O {[%clk 0:02:58.4]}
12... a5 {[%clk 0:02:46.1]} 13. Ne4 {[%clk 0:02:25.2]} 13... a4 {[%clk
0:02:36.3]} 14. Qc2 {[%clk 0:01:37.2]} 14... axb3 {[%clk 0:02:30.1]} 15. axb3
{[%clk 0:01:37.6]} 15... d5 {[%clk 0:01:55.2]} 16. Ng5 {[%clk 0:01:12.7]} 16...
Qf5 {[%clk 0:01:48.8]} 17. Qxf5 {[%clk 0:00:42.7]} 17... Bxf5 {[%clk 0:01:48.5]}
18. cxd5 {[%clk 0:00:35.4]} 18... Nxd5 {[%clk 0:01:34.5]} 19. Bd3 {[%clk
0:00:31.6]} 19... Bxd3 {[%clk 0:01:14.8]} 20. Rxd3 {[%clk 0:00:32.5]} 20... Ra5
{[%clk 0:00:58.1]} 21. g3 {[%clk 0:00:30.1]} 21... Rfa8 {[%clk 0:00:53]} 22. Kb1
{[%clk 0:00:24.1]} 22... Ba3 {[%clk 0:00:45.8]} 23. Bd4 {[%clk 0:00:11.3]} 23...
c5 {[%clk 0:00:45.8]} 24. Ba1 {[%clk 0:00:11.1]} 24... Nb4 {[%clk 0:00:39.4]}
25. Rd7 {[%clk 0:00:08.8]} 25... Bc1 {[%clk 0:00:36.8]} 26. Bc3 {[%clk
0:00:09.1]} 26... Bxg5 {[%clk 0:00:34.1]} 27. e6 {[%clk 0:00:06.8]} 27... Bf6
{[%clk 0:00:24.7]} 28. exf7+ {[%clk 0:00:05.8]} 28... Kf8 {[%clk 0:00:22.5]} 29.
Bxf6 {[%clk 0:00:05.7]} 29... gxf6 {[%clk 0:00:22.6]} 30. Rhd1 {[%clk
0:00:03.2]} 30... Ra1+ {[%clk 0:00:20.5]} 31. Kb2 {[%clk 0:00:04.6]} 31... R8a2+
{[%clk 0:00:20.5]} 32. Kc3 {[%clk 0:00:05.9]} 32... Rc2# {[%clk 0:00:20.2]} 0-1

[Event "*** Titled Tuesday 3|2 Blitz"]
[Site "Chess.com"]
[Date "2015.05.05"]
[Round "9"]
[White "geeeeri"]
[Black "vovkcoach"]
[Result "0-1"]
[WhiteElo "2117"]
[BlackElo "2429"]
[TimeControl "180+2"]
[EndTime "13:07:37 PDT"]
[Termination "vovkcoach won by resignation"]

1. e4 {[%clk 0:03:01.9]} 1... c5 {[%clk 0:03:00.1]} 2. Nf3 {[%clk 0:03:02.8]}
2... Nc6 {[%clk 0:02:59.3]} 3. Bb5 {[%clk 0:03:02.7]} 3... e6 {[%clk 0:02:59]}
4. O-O {[%clk 0:03:02.7]} 4... Nge7 {[%clk 0:02:58.9]} 5. Re1 {[%clk 0:03:03.5]}
5... a6 {[%clk 0:02:58.4]} 6. Bf1 {[%clk 0:03:03.4]} 6... d5 {[%clk 0:02:57.7]}
7. e5 {[%clk 0:02:56.3]} 7... Ng6 {[%clk 0:02:55.9]} 8. d3 {[%clk 0:02:57.1]}
8... Qc7 {[%clk 0:02:56.1]} 9. Qe2 {[%clk 0:02:58]} 9... f6 {[%clk 0:02:36.8]}
10. exf6 {[%clk 0:02:54.2]} 10... gxf6 {[%clk 0:02:38.7]} 11. h4 {[%clk
0:02:54.8]} 11... Bd7 {[%clk 0:02:14.5]} 12. g3 {[%clk 0:02:29.5]} 12... Bd6
{[%clk 0:02:11.1]} 13. h5 {[%clk 0:02:29.3]} 13... Nge5 {[%clk 0:02:11]} 14.
Nxe5 {[%clk 0:02:15.5]} 14... Bxe5 {[%clk 0:02:08.9]} 15. f4 {[%clk 0:02:14.3]}
15... Bd6 {[%clk 0:02:08.7]} 16. c3 {[%clk 0:02:05.4]} 16... O-O-O {[%clk
0:02:07.3]} 17. Kh2 {[%clk 0:01:47.9]} 17... e5 {[%clk 0:02:06.7]} 18. Qf3
{[%clk 0:01:38.6]} 18... Rhg8 {[%clk 0:01:59.6]} 19. Na3 {[%clk 0:01:26.1]}
19... Bg4 {[%clk 0:01:57.6]} 20. Qf2 {[%clk 0:01:15.7]} 20... Bxh5 {[%clk
0:01:55.7]} 21. Bg2 {[%clk 0:01:15.8]} 21... Bf7 {[%clk 0:01:54.8]} 22. c4
{[%clk 0:01:16.1]} 22... exf4 {[%clk 0:01:45.8]} 23. Bxf4 {[%clk 0:01:14.7]}
23... Ne5 {[%clk 0:01:45.6]} 24. Bh3+ {[%clk 0:01:10.3]} 24... Kb8 {[%clk
0:01:43.5]} 25. Rad1 {[%clk 0:00:50.6]} 25... Bh5 {[%clk 0:01:35.8]} 26. cxd5
{[%clk 0:00:36.5]} 26... Nf3+ {[%clk 0:01:25.5]} 27. Kh1 {[%clk 0:00:37.3]}
27... Bxf4 {[%clk 0:01:21.3]} 28. gxf4 {[%clk 0:00:38.4]} 28... Nxe1 {[%clk
0:01:14.9]} 29. Rxe1 {[%clk 0:00:38.1]} 29... Bg4 {[%clk 0:00:51.4]} 30. Bg2
{[%clk 0:00:38.7]} 30... Qg7 {[%clk 0:00:43.9]} 31. Qh4 {[%clk 0:00:27.5]} 31...
Be6 {[%clk 0:00:42.5]} 32. Qh2 {[%clk 0:00:22.6]} 32... Bxd5 {[%clk 0:00:40]}
33. Be4 {[%clk 0:00:21.5]} 33... Bxe4+ {[%clk 0:00:34.1]} 34. dxe4 {[%clk
0:00:22.7]} 34... Qg4 {[%clk 0:00:32.8]} 35. Nc4 {[%clk 0:00:21]} 35... Qf3+
{[%clk 0:00:30.6]} 0-1

[Event "*** Titled Tuesday 3|2 Blitz"]
[Site "Chess.com"]
[Date "2015.05.05"]
[Round "9"]
[White "wonderfultime"]
[Black "igorkovalenko"]
[Result "1-0"]
[WhiteElo "2576"]
[BlackElo "2484"]
[TimeControl "180+2"]
[EndTime "13:08:11 PDT"]
[Termination "wonderfultime won by resignation"]

1. d4 {[%clk 0:03:01.9]} 1... Nf6 {[%clk 0:02:29.7]} 2. c4 {[%clk 0:03:00.9]}
2... e6 {[%clk 0:02:30.4]} 3. Nf3 {[%clk 0:03:01.6]} 3... b6 {[%clk 0:02:31.8]}
4. a3 {[%clk 0:03:02.8]} 4... Ba6 {[%clk 0:02:32.6]} 5. Qc2 {[%clk 0:03:03.9]}
5... c5 {[%clk 0:02:26.9]} 6. d5 {[%clk 0:02:36.7]} 6... g6 {[%clk 0:02:26.8]}
7. e4 {[%clk 0:02:33.6]} 7... exd5 {[%clk 0:02:26]} 8. exd5 {[%clk 0:02:27.7]}
8... Bg7 {[%clk 0:02:27.1]} 9. Be2 {[%clk 0:02:27.9]} 9... O-O {[%clk
0:02:27.6]} 10. O-O {[%clk 0:02:29.2]} 10... d6 {[%clk 0:02:28.7]} 11. Nc3
{[%clk 0:02:28.8]} 11... Re8 {[%clk 0:02:26.8]} 12. h3 {[%clk 0:02:28.6]} 12...
Nbd7 {[%clk 0:02:26.8]} 13. Bf4 {[%clk 0:02:29.5]} 13... Ne5 {[%clk 0:02:28.1]}
14. Nxe5 {[%clk 0:02:26.7]} 14... dxe5 {[%clk 0:02:30]} 15. Bg5 {[%clk
0:02:28.2]} 15... h6 {[%clk 0:02:30.6]} 16. Bh4 {[%clk 0:02:29]} 16... Bc8
{[%clk 0:02:28.7]} 17. Rfe1 {[%clk 0:02:27.9]} 17... Bf5 {[%clk 0:02:29.6]} 18.
Bd3 {[%clk 0:02:29.1]} 18... Bd7 {[%clk 0:02:14.9]} 19. Rad1 {[%clk 0:02:27]}
19... Qc7 {[%clk 0:02:01.6]} 20. d6 {[%clk 0:02:23.2]} 20... Qc8 {[%clk
0:01:52.7]} 21. Bxf6 {[%clk 0:02:06.9]} 21... Bxf6 {[%clk 0:01:53.9]} 22. Nd5
{[%clk 0:02:08.8]} 22... Re6 {[%clk 0:01:42.9]} 23. Nc7 {[%clk 0:02:02.8]} 23...
Rxd6 {[%clk 0:01:43.4]} 24. Nxa8 {[%clk 0:02:04.1]} 24... Qxa8 {[%clk
0:01:22.8]} 25. Bxg6 {[%clk 0:02:04.4]} 25... Rxd1 {[%clk 0:01:14.6]} 26. Rxd1
{[%clk 0:02:06.3]} 26... Bc6 {[%clk 0:01:16.1]} 27. Rd6 {[%clk 0:01:41.7]} 27...
Be7 {[%clk 0:00:44.2]} 28. Bxf7+ {[%clk 0:01:41.7]} 28... Kf8 {[%clk 0:00:45.5]}
29. Rxh6 {[%clk 0:01:41.1]} 29... Be4 {[%clk 0:00:46]} 30. Qd1 {[%clk
0:00:51.2]} 30... Kxf7 {[%clk 0:00:44.8]} 31. Qd7 {[%clk 0:00:50.7]} 31... Qe8
{[%clk 0:00:26.4]} 32. Qe6+ {[%clk 0:00:49.5]} 32... Kg7 {[%clk 0:00:27.1]} 33.
Rh4 {[%clk 0:00:43.7]} 33... Bf5 {[%clk 0:00:07.8]} 34. Qxf5 {[%clk 0:00:42.9]}
34... Bxh4 {[%clk 0:00:08.4]} 35. Qg4+ {[%clk 0:00:44.8]} 35... Qg6 {[%clk
0:00:09.2]} 36. Qxh4 {[%clk 0:00:46.4]} 36... Qb1+ {[%clk 0:00:10.5]} 37. Kh2
{[%clk 0:00:47.8]} 37... Qxb2 {[%clk 0:00:12.4]} 38. Qe7+ {[%clk 0:00:49.2]}
38... Kg6 {[%clk 0:00:13.7]} 39. Qe6+ {[%clk 0:00:50.6]} 39... Kg5 {[%clk
0:00:14.9]} 40. h4+ {[%clk 0:00:31.1]} 40... Kxh4 {[%clk 0:00:15.9]} 41. Qf5
{[%clk 0:00:32]} 1-0

[Event "*** Titled Tuesday 3|2 Blitz"]
[Site "Chess.com"]
[Date "2015.05.05"]
[Round "9"]
[White "Daniel_Fridman"]
[Black "Lupul_Cenusiu"]
[Result "0-1"]
[WhiteElo "2559"]
[BlackElo "2338"]
[TimeControl "180+2"]
[EndTime "13:08:24 PDT"]
[Termination "Lupul_Cenusiu won by resignation"]

1. e4 {[%clk 0:03:01.9]} 1... c5 {[%clk 0:02:59.9]} 2. g3 {[%clk 0:03:02.1]}
2... d6 {[%clk 0:02:57.7]} 3. Bg2 {[%clk 0:03:02.7]} 3... g6 {[%clk 0:02:58.9]}
4. d3 {[%clk 0:03:03.9]} 4... Bg7 {[%clk 0:02:59.9]} 5. f4 {[%clk 0:03:04.8]}
5... e6 {[%clk 0:03:00.4]} 6. Nf3 {[%clk 0:03:05.5]} 6... Nc6 {[%clk 0:03:00.5]}
7. c3 {[%clk 0:03:06.7]} 7... Nge7 {[%clk 0:02:58.9]} 8. O-O {[%clk 0:03:08.1]}
8... O-O {[%clk 0:02:59.4]} 9. Be3 {[%clk 0:03:06.9]} 9... Qc7 {[%clk
0:02:57.9]} 10. a4 {[%clk 0:03:06.3]} 10... Rb8 {[%clk 0:02:57]} 11. Bf2 {[%clk
0:03:07.2]} 11... b6 {[%clk 0:02:57.5]} 12. Na3 {[%clk 0:03:07.6]} 12... a6
{[%clk 0:02:55.6]} 13. d4 {[%clk 0:03:06.5]} 13... cxd4 {[%clk 0:02:53.2]} 14.
cxd4 {[%clk 0:03:07.4]} 14... d5 {[%clk 0:02:54.1]} 15. e5 {[%clk 0:03:08.1]}
15... Nb4 {[%clk 0:02:48]} 16. Rc1 {[%clk 0:02:55]} 16... Nec6 {[%clk
0:02:44.8]} 17. Qd2 {[%clk 0:02:43]} 17... Qb7 {[%clk 0:02:42]} 18. g4 {[%clk
0:02:43.6]} 18... Bd7 {[%clk 0:02:41.8]} 19. Rc3 {[%clk 0:02:41.3]} 19... Rbc8
{[%clk 0:02:36.1]} 20. f5 {[%clk 0:02:39.5]} 20... exf5 {[%clk 0:02:32.5]} 21.
gxf5 {[%clk 0:02:39.8]} 21... Bxf5 {[%clk 0:02:31.7]} 22. Ng5 {[%clk 0:02:38.5]}
22... f6 {[%clk 0:02:23.2]} 23. Rxc6 {[%clk 0:02:15.1]} 23... Qxc6 {[%clk
0:02:20.6]} 24. Qxb4 {[%clk 0:02:15.2]} 24... fxg5 {[%clk 0:02:21.3]} 25. Be3
{[%clk 0:02:13.3]} 25... Be6 {[%clk 0:02:19.7]} 26. Bxg5 {[%clk 0:02:08.2]}
26... Rxf1+ {[%clk 0:02:19.2]} 27. Bxf1 {[%clk 0:02:07.9]} 27... a5 {[%clk
0:02:10.4]} 28. Qb3 {[%clk 0:02:01.3]} 28... h6 {[%clk 0:02:01.1]} 29. Be3
{[%clk 0:01:59.2]} 29... Kh7 {[%clk 0:01:55.3]} 30. Bd3 {[%clk 0:01:59.9]} 30...
Rf8 {[%clk 0:01:50.4]} 31. Nb5 {[%clk 0:01:56.1]} 31... Bf5 {[%clk 0:01:51]} 32.
Be2 {[%clk 0:01:49.5]} 32... Qd7 {[%clk 0:01:40.3]} 33. Nd6 {[%clk 0:01:47]}
33... Bg4 {[%clk 0:01:20.7]} 34. Bb5 {[%clk 0:01:42.2]} 34... Qe6 {[%clk
0:01:21.2]} 35. Bf2 {[%clk 0:01:40.1]} 35... Bf3 {[%clk 0:01:15.2]} 36. Bg3
{[%clk 0:01:37.1]} 36... h5 {[%clk 0:01:11.8]} 37. Qe3 {[%clk 0:01:24.3]} 37...
Qg4 {[%clk 0:01:10]} 38. Kf1 {[%clk 0:00:50.9]} 38... Bh6 {[%clk 0:00:58.4]} 39.
Qc3 {[%clk 0:00:51.5]} 39... Qh3+ {[%clk 0:00:47.3]} 40. Ke1 {[%clk 0:00:50.2]}
40... h4 {[%clk 0:00:39.6]} 41. Bf2 {[%clk 0:00:47.5]} 41... Qxh2 {[%clk
0:00:37.4]} 42. Qc7+ {[%clk 0:00:34.7]} 42... Kg8 {[%clk 0:00:26.7]} 43. e6
{[%clk 0:00:22]} 43... Qh1+ {[%clk 0:00:21.4]} 44. Bf1 {[%clk 0:00:23]} 44...
Bg2 {[%clk 0:00:22.5]} 0-1